[Event "*** Titled Tuesday Blitz"]
[Site "Chess.com"]
[Date "2020.10.20"]
[Round "5"]
[White "11kevin"]
[Black "GMKrikor"]
[Result "0-1"]
[WhiteElo "2580"]
[BlackElo "2805"]
[TimeControl "180+1"]
[EndTime "10:57:07 PDT"]
[Termination "GMKrikor won by resignation"]

1. d4 {[%clk 0:03:00.9]} 1... Nf6 {[%clk 0:02:56.2]} 2. c4 {[%clk 0:03:00.6]}
2... g6 {[%clk 0:02:55.5]} 3. g3 {[%clk 0:03:00.6]} 3... d5 {[%clk 0:02:55.1]}
4. cxd5 {[%clk 0:02:58.2]} 4... Nxd5 {[%clk 0:02:56]} 5. Bg2 {[%clk 0:02:58.6]}
5... Bg7 {[%clk 0:02:55.5]} 6. Nf3 {[%clk 0:02:58.9]} 6... Nb6 {[%clk
0:02:54.8]} 7. O-O {[%clk 0:02:57.4]} 7... Nc6 {[%clk 0:02:55.4]} 8. e3 {[%clk
0:02:56.9]} 8... e5 {[%clk 0:02:52.4]} 9. Nc3 {[%clk 0:02:49.6]} 9... exd4
{[%clk 0:02:52.1]} 10. exd4 {[%clk 0:02:49.3]} 10... O-O {[%clk 0:02:51.9]} 11.
Bg5 {[%clk 0:02:45.2]} 11... Qd7 {[%clk 0:02:46.2]} 12. Be3 {[%clk 0:02:27.7]}
12... Nc4 {[%clk 0:02:37.3]} 13. Qb3 {[%clk 0:02:17.4]} 13... Nxe3 {[%clk
0:02:31.6]} 14. fxe3 {[%clk 0:02:18.3]} 14... Qd8 {[%clk 0:02:29.4]} 15. Na4
{[%clk 0:01:51.8]} 15... Rb8 {[%clk 0:02:23.1]} 16. Rad1 {[%clk 0:01:36.3]}
16... Qe7 {[%clk 0:02:16.9]} 17. Rfe1 {[%clk 0:01:31]} 17... Qb4 {[%clk
0:02:10]} 18. Qxb4 {[%clk 0:01:25.4]} 18... Nxb4 {[%clk 0:02:10.9]} 19. a3
{[%clk 0:01:23.7]} 19... Nd5 {[%clk 0:02:11]} 20. e4 {[%clk 0:01:22.4]} 20...
Nb6 {[%clk 0:02:10.3]} 21. Nc5 {[%clk 0:01:22.5]} 21... Bg4 {[%clk 0:02:03.2]}
22. b3 {[%clk 0:01:15.7]} 22... Rfd8 {[%clk 0:01:53.2]} 23. d5 {[%clk
0:01:07.6]} 23... Bf8 {[%clk 0:01:49.2]} 24. Rc1 {[%clk 0:01:04.6]} 24... Bg7
{[%clk 0:01:44.2]} 25. h3 {[%clk 0:00:46.7]} 25... Bxf3 {[%clk 0:01:43.4]} 26.
Bxf3 {[%clk 0:00:47.6]} 26... Bb2 {[%clk 0:01:44]} 27. Rc2 {[%clk 0:00:44.8]}
27... Bxa3 {[%clk 0:01:44.2]} 28. Nd3 {[%clk 0:00:41.7]} 28... c6 {[%clk
0:01:41.8]} 29. Ra1 {[%clk 0:00:27.7]} 29... Bf8 {[%clk 0:01:36.2]} 30. Rxa7
{[%clk 0:00:25.8]} 30... cxd5 {[%clk 0:01:36.7]} 31. exd5 {[%clk 0:00:24.3]}
31... Nxd5 {[%clk 0:01:37.6]} 32. Nf2 {[%clk 0:00:17.5]} 32... b6 {[%clk
0:01:09.1]} 33. Ne4 {[%clk 0:00:14.5]} 33... Be7 {[%clk 0:01:00.5]} 34. Kf2
{[%clk 0:00:11.6]} 34... f5 {[%clk 0:00:58.1]} 35. Nd2 {[%clk 0:00:11.7]} 35...
Bc5+ {[%clk 0:00:58.2]} 36. Ke2 {[%clk 0:00:10]} 36... Re8+ {[%clk 0:00:56.4]}
37. Kd3 {[%clk 0:00:09.9]} 37... Nb4+ {[%clk 0:00:49.2]} 38. Kc3 {[%clk
0:00:09.6]} 38... Re3+ {[%clk 0:00:45.1]} 39. Kb2 {[%clk 0:00:08.7]} 39... Bd4+
{[%clk 0:00:45.6]} 40. Kc1 {[%clk 0:00:07.5]} 40... Re1+ {[%clk 0:00:43.4]} 41.
Bd1 {[%clk 0:00:06.8]} 41... Nd3+ {[%clk 0:00:44]} 42. Kb1 {[%clk 0:00:07]}
42... Rxd1+ {[%clk 0:00:44.1]} 0-1

[Event "*** Titled Tuesday Blitz"]
[Site "Chess.com"]
[Date "2020.10.20"]
[Round "5"]
[White "DenishevM"]
[Black "Mazetovic"]
[Result "0-1"]
[WhiteElo "2558"]
[BlackElo "2749"]
[TimeControl "180+1"]
[EndTime "10:57:07 PDT"]
[Termination "Mazetovic won on time"]

1. d4 {[%clk 0:03:00.9]} 1... Nf6 {[%clk 0:02:59.5]} 2. c4 {[%clk 0:03:00.8]}
2... g6 {[%clk 0:02:59.4]} 3. Nc3 {[%clk 0:03:00.3]} 3... Bg7 {[%clk 0:03:00]}
4. Nf3 {[%clk 0:03:00.2]} 4... O-O {[%clk 0:03:00]} 5. e4 {[%clk 0:02:59.9]}
5... d6 {[%clk 0:03:00.3]} 6. Be2 {[%clk 0:03:00.4]} 6... Na6 {[%clk 0:02:59.4]}
7. O-O {[%clk 0:02:59.2]} 7... e5 {[%clk 0:02:58.8]} 8. d5 {[%clk 0:02:55.2]}
8... Nc5 {[%clk 0:02:57.9]} 9. Qc2 {[%clk 0:02:54.8]} 9... a5 {[%clk 0:02:57.8]}
10. Bg5 {[%clk 0:02:52.6]} 10... h6 {[%clk 0:02:55.4]} 11. Be3 {[%clk
0:02:52.7]} 11... b6 {[%clk 0:02:48.6]} 12. Nd2 {[%clk 0:02:50.6]} 12... Ng4
{[%clk 0:02:42.2]} 13. Bxg4 {[%clk 0:02:50.2]} 13... Bxg4 {[%clk 0:02:42.7]} 14.
f3 {[%clk 0:02:50.8]} 14... Bd7 {[%clk 0:02:42.6]} 15. b3 {[%clk 0:02:51.3]}
15... f5 {[%clk 0:02:42.1]} 16. a3 {[%clk 0:02:51.2]} 16... f4 {[%clk 0:02:33]}
17. Bf2 {[%clk 0:02:49.5]} 17... g5 {[%clk 0:02:20.1]} 18. b4 {[%clk 0:02:49]}
18... Nb7 {[%clk 0:02:20]} 19. c5 {[%clk 0:02:41.6]} 19... bxc5 {[%clk
0:02:12.3]} 20. bxc5 {[%clk 0:02:42.5]} 20... Nxc5 {[%clk 0:02:09]} 21. Bxc5
{[%clk 0:02:25.5]} 21... dxc5 {[%clk 0:02:08.7]} 22. Nc4 {[%clk 0:02:26.4]}
22... g4 {[%clk 0:02:07.8]} 23. d6 {[%clk 0:02:22.1]} 23... Be6 {[%clk
0:01:49.4]} 24. Qd3 {[%clk 0:01:23]} 24... cxd6 {[%clk 0:01:36.4]} 25. Rad1
{[%clk 0:00:56]} 25... gxf3 {[%clk 0:01:36]} 26. gxf3 {[%clk 0:00:53.9]} 26...
Rf6 {[%clk 0:01:30.3]} 27. Nxe5 {[%clk 0:00:44.4]} 27... Rf8 {[%clk 0:01:13.1]}
28. Nc6 {[%clk 0:00:32.6]} 28... Qh4 {[%clk 0:00:55.1]} 29. Nd5 {[%clk
0:00:20.9]} 29... Bh3 {[%clk 0:00:50]} 30. Rf2 {[%clk 0:00:16.1]} 30... Kh8
{[%clk 0:00:49.1]} 31. Nce7 {[%clk 0:00:12.8]} 31... Qh5 {[%clk 0:00:44.5]} 32.
Rc2 {[%clk 0:00:06.2]} 32... Bd4+ {[%clk 0:00:41.8]} 33. Kh1 {[%clk 0:00:03.9]}
33... Rf7 {[%clk 0:00:32.3]} 34. e5 {[%clk 0:00:04.1]} 34... dxe5 {[%clk
0:00:23.7]} 35. Re2 {[%clk 0:00:02.2]} 35... Rg7 {[%clk 0:00:20.6]} 0-1

[Event "*** Titled Tuesday Blitz"]
[Site "Chess.com"]
[Date "2020.10.20"]
[Round "5"]
[White "Eliwood44"]
[Black "Mbneu"]
[Result "1-0"]
[WhiteElo "2433"]
[BlackElo "2226"]
[TimeControl "180+1"]
[EndTime "10:57:07 PDT"]
[Termination "Eliwood44 won by resignation"]

1. d4 {[%clk 0:03:00.9]} 1... Nf6 {[%clk 0:02:59.2]} 2. Nf3 {[%clk 0:02:33.4]}
2... c5 {[%clk 0:02:57.7]} 3. d5 {[%clk 0:02:33.1]} 3... b5 {[%clk 0:02:56.5]}
4. Bg5 {[%clk 0:02:30.5]} 4... Ne4 {[%clk 0:02:37.9]} 5. Bh4 {[%clk 0:02:29.7]}
5... g6 {[%clk 0:02:26.4]} 6. Nbd2 {[%clk 0:02:28.5]} 6... Nxd2 {[%clk
0:02:22.9]} 7. Qxd2 {[%clk 0:02:28.2]} 7... d6 {[%clk 0:02:07.6]} 8. e4 {[%clk
0:02:27.2]} 8... Bg7 {[%clk 0:02:06.4]} 9. Bxb5+ {[%clk 0:02:26.3]} 9... Bd7
{[%clk 0:02:06.3]} 10. Bxd7+ {[%clk 0:02:13.6]} 10... Nxd7 {[%clk 0:02:05.7]}
11. c3 {[%clk 0:02:14]} 11... Nb6 {[%clk 0:02:04.5]} 12. Qe2 {[%clk 0:02:12.2]}
12... O-O {[%clk 0:02:02.8]} 13. O-O {[%clk 0:02:11.8]} 13... Na4 {[%clk
0:02:01]} 14. Rfd1 {[%clk 0:02:04.3]} 14... Rb8 {[%clk 0:01:58.2]} 15. Rab1
{[%clk 0:02:02.9]} 15... Rxb2 {[%clk 0:01:49.2]} 16. Rxb2 {[%clk 0:02:00.2]}
16... Nxc3 {[%clk 0:01:49.2]} 17. Qc2 {[%clk 0:01:47.6]} 17... Nxd1 {[%clk
0:01:46.8]} 18. Rb3 {[%clk 0:01:47.7]} 18... c4 {[%clk 0:01:42.9]} 19. Rb7
{[%clk 0:01:41.8]} 19... Qc8 {[%clk 0:01:26.6]} 20. Rxa7 {[%clk 0:01:36.5]}
20... Qc5 {[%clk 0:01:16.8]} 21. Rxe7 {[%clk 0:01:33.2]} 21... Nb2 {[%clk
0:01:05.6]} 22. e5 {[%clk 0:01:21.1]} 22... Qxd5 {[%clk 0:00:56.6]} 23. h3
{[%clk 0:01:11.2]} 23... Nd3 {[%clk 0:00:51.9]} 24. exd6 {[%clk 0:01:09.2]}
24... Nb4 {[%clk 0:00:44.6]} 25. Qe4 {[%clk 0:00:56.5]} 25... c3 {[%clk
0:00:28.3]} 26. Qxb4 {[%clk 0:00:51]} 26... c2 {[%clk 0:00:28.2]} 27. Re1 {[%clk
0:00:49.8]} 27... Qd1 {[%clk 0:00:27.5]} 28. Qc5 {[%clk 0:00:37.8]} 28... Bb2
{[%clk 0:00:22.8]} 29. Bg5 {[%clk 0:00:34.1]} 29... Re8 {[%clk 0:00:19.6]} 30.
Kh2 {[%clk 0:00:19]} 30... Rxe1 {[%clk 0:00:17.7]} 31. Nxe1 {[%clk 0:00:17.7]}
31... Qxe1 {[%clk 0:00:15.2]} 32. Qc8+ {[%clk 0:00:15.9]} 32... Kg7 {[%clk
0:00:14.5]} 33. Qxc2 {[%clk 0:00:15.7]} 33... Qe5+ {[%clk 0:00:13.6]} 34. f4
{[%clk 0:00:15.6]} 34... Qxd6 {[%clk 0:00:09.7]} 35. Qxb2+ {[%clk 0:00:15.3]}
35... f6 {[%clk 0:00:09.3]} 36. Bxf6+ {[%clk 0:00:14.5]} 36... Qxf6 {[%clk
0:00:09.6]} 37. Qxf6+ {[%clk 0:00:14.6]} 37... Kxf6 {[%clk 0:00:10.5]} 1-0

[Event "*** Titled Tuesday Blitz"]
[Site "Chess.com"]
[Date "2020.10.20"]
[Round "5"]
[White "Sashadav97"]
[Black "Oleksandr_Bortnyk"]
[Result "0-1"]
[WhiteElo "2639"]
[BlackElo "2892"]
[TimeControl "180+1"]
[EndTime "10:57:08 PDT"]
[Termination "Oleksandr_Bortnyk won by resignation"]

1. Nf3 {[%clk 0:03:00.8]} 1... Nf6 {[%clk 0:02:57.8]} 2. c4 {[%clk 0:03:00]}
2... b6 {[%clk 0:02:57.7]} 3. g3 {[%clk 0:02:58]} 3... Bb7 {[%clk 0:02:58.6]} 4.
Bg2 {[%clk 0:02:58.6]} 4... g6 {[%clk 0:02:55.8]} 5. b3 {[%clk 0:02:58]} 5...
Bg7 {[%clk 0:02:55.7]} 6. Bb2 {[%clk 0:02:58.6]} 6... O-O {[%clk 0:02:56.3]} 7.
O-O {[%clk 0:02:59.2]} 7... c5 {[%clk 0:02:56.1]} 8. Nc3 {[%clk 0:02:56]} 8...
d5 {[%clk 0:02:55.1]} 9. Nxd5 {[%clk 0:02:55.8]} 9... Nxd5 {[%clk 0:02:56]} 10.
Bxg7 {[%clk 0:02:55.9]} 10... Kxg7 {[%clk 0:02:54.3]} 11. cxd5 {[%clk 0:02:56]}
11... Qxd5 {[%clk 0:02:51.8]} 12. d4 {[%clk 0:02:55.7]} 12... cxd4 {[%clk
0:02:47]} 13. Qxd4+ {[%clk 0:02:56.6]} 13... Qxd4 {[%clk 0:02:45.5]} 14. Nxd4
{[%clk 0:02:57.5]} 14... Bxg2 {[%clk 0:02:44.9]} 15. Kxg2 {[%clk 0:02:58.4]}
15... Nd7 {[%clk 0:02:20.4]} 16. Rfd1 {[%clk 0:02:47.7]} 16... Nc5 {[%clk
0:02:16]} 17. b4 {[%clk 0:02:45.5]} 17... Ne4 {[%clk 0:02:15.2]} 18. Nc6 {[%clk
0:02:24.6]} 18... e6 {[%clk 0:02:01.9]} 19. Rac1 {[%clk 0:02:15.9]} 19... Rfc8
{[%clk 0:01:48]} 20. f3 {[%clk 0:02:12.3]} 20... Nf6 {[%clk 0:01:46.3]} 21. e4
{[%clk 0:02:11.5]} 21... a6 {[%clk 0:01:41.3]} 22. a4 {[%clk 0:02:07.2]} 22...
b5 {[%clk 0:01:40.6]} 23. a5 {[%clk 0:01:55.6]} 23... Rc7 {[%clk 0:01:40.8]} 24.
Ne5 {[%clk 0:01:49.7]} 24... Rac8 {[%clk 0:01:39]} 25. Rxc7 {[%clk 0:01:49.6]}
25... Rxc7 {[%clk 0:01:39.9]} 26. Rd6 {[%clk 0:01:49.9]} 26... Rc2+ {[%clk
0:01:40.5]} 27. Kg1 {[%clk 0:01:44.5]} 27... g5 {[%clk 0:01:33.1]} 28. Rxa6
{[%clk 0:01:42.7]} 28... g4 {[%clk 0:01:33.4]} 29. Ra7 {[%clk 0:01:37.8]} 29...
Ne8 {[%clk 0:00:59.9]} 30. Rxf7+ {[%clk 0:01:36.1]} 30... Kg8 {[%clk 0:00:59.3]}
31. Re7 {[%clk 0:01:32.9]} 31... Nc7 {[%clk 0:00:49.5]} 32. Nxg4 {[%clk
0:01:28.8]} 32... Na6 {[%clk 0:00:49.4]} 33. Rb7 {[%clk 0:01:10.9]} 33... Nxb4
{[%clk 0:00:45.4]} 34. Rxb5 {[%clk 0:01:09.7]} 34... Nd3 {[%clk 0:00:45.8]} 35.
a6 {[%clk 0:01:06.3]} 35... Ra2 {[%clk 0:00:46]} 36. Rb8+ {[%clk 0:01:05.8]}
36... Kf7 {[%clk 0:00:45]} 37. Rb7+ {[%clk 0:01:06.1]} 37... Kg6 {[%clk
0:00:45.5]} 38. a7 {[%clk 0:01:06.6]} 38... h5 {[%clk 0:00:45.7]} 39. Ne5+
{[%clk 0:01:05.5]} 39... Nxe5 {[%clk 0:00:45.8]} 40. f4 {[%clk 0:01:02.7]} 40...
Nf3+ {[%clk 0:00:44.9]} 41. Kf1 {[%clk 0:01:02.5]} 41... Nxh2+ {[%clk
0:00:35.5]} 42. Ke1 {[%clk 0:01:02.4]} 42... Nf3+ {[%clk 0:00:35.1]} 43. Kd1
{[%clk 0:01:02.9]} 43... Nd4 {[%clk 0:00:32]} 44. Kc1 {[%clk 0:00:48.8]} 44...
Ne2+ {[%clk 0:00:32.3]} 45. Kb1 {[%clk 0:00:47.5]} 45... Nc3+ {[%clk 0:00:33.2]}
46. Kc1 {[%clk 0:00:46.5]} 46... Nxe4 {[%clk 0:00:34.1]} 47. Rc7 {[%clk
0:00:36.3]} 47... Nxg3 {[%clk 0:00:31.6]} 48. Kb1 {[%clk 0:00:33.3]} 48... Ra6
{[%clk 0:00:25.7]} 49. Kb2 {[%clk 0:00:33.1]} 49... h4 {[%clk 0:00:26]} 0-1

[Event "*** Titled Tuesday Blitz"]
[Site "Chess.com"]
[Date "2020.10.20"]
[Round "5"]
[White "realmadridtv"]
[Black "Jungle_Jaguar"]
[Result "1-0"]
[WhiteElo "2413"]
[BlackElo "2589"]
[TimeControl "180+1"]
[EndTime "10:57:09 PDT"]
[Termination "realmadridtv won by resignation"]

1. e4 {[%clk 0:02:52.6]} 1... c5 {[%clk 0:02:58.5]} 2. Nf3 {[%clk 0:02:51.9]}
2... d6 {[%clk 0:02:58.7]} 3. Nc3 {[%clk 0:02:50.4]} 3... Nf6 {[%clk 0:02:57.8]}
4. e5 {[%clk 0:02:48.9]} 4... dxe5 {[%clk 0:02:45.5]} 5. Nxe5 {[%clk 0:02:49.8]}
5... a6 {[%clk 0:02:42.8]} 6. g3 {[%clk 0:02:48.9]} 6... e6 {[%clk 0:02:42.2]}
7. Bg2 {[%clk 0:02:48.7]} 7... Bd6 {[%clk 0:02:41]} 8. d4 {[%clk 0:02:45.3]}
8... O-O {[%clk 0:02:39.7]} 9. O-O {[%clk 0:02:44.7]} 9... Bc7 {[%clk
0:02:36.3]} 10. Be3 {[%clk 0:02:42.4]} 10... Qe7 {[%clk 0:02:31]} 11. Nd3 {[%clk
0:02:32.1]} 11... cxd4 {[%clk 0:02:26.1]} 12. Bxd4 {[%clk 0:02:33]} 12... Rd8
{[%clk 0:02:25.2]} 13. Bc5 {[%clk 0:02:08]} 13... Qe8 {[%clk 0:02:25]} 14. Qe2
{[%clk 0:02:03.4]} 14... e5 {[%clk 0:02:19.6]} 15. Rfe1 {[%clk 0:01:59.5]} 15...
Nc6 {[%clk 0:02:12]} 16. h3 {[%clk 0:01:56.6]} 16... Bf5 {[%clk 0:02:09.5]} 17.
Kh2 {[%clk 0:01:43.9]} 17... Rac8 {[%clk 0:01:13.9]} 18. Ne4 {[%clk 0:01:39.8]}
18... Nd5 {[%clk 0:00:37.4]} 19. Rf1 {[%clk 0:01:28.1]} 19... Bg6 {[%clk
0:00:32.9]} 20. Ba3 {[%clk 0:01:20.7]} 20... f5 {[%clk 0:00:32.4]} 21. Ng5
{[%clk 0:01:18]} 21... e4 {[%clk 0:00:31]} 22. Nc5 {[%clk 0:01:15.6]} 22... h6
{[%clk 0:00:26.7]} 23. Nge6 {[%clk 0:01:12.4]} 23... Rd7 {[%clk 0:00:23.8]} 24.
Nxd7 {[%clk 0:01:10.5]} 24... Qxd7 {[%clk 0:00:23.7]} 25. Nc5 {[%clk 0:01:11.1]}
25... Qf7 {[%clk 0:00:21.7]} 26. Nxb7 {[%clk 0:01:08.4]} 26... Bxg3+ {[%clk
0:00:21.3]} 27. fxg3 {[%clk 0:01:06.8]} 27... Qxb7 {[%clk 0:00:22.2]} 28. c4
{[%clk 0:01:03.8]} 28... Ndb4 {[%clk 0:00:20.1]} 29. Bxb4 {[%clk 0:00:59.3]}
29... Nxb4 {[%clk 0:00:20.1]} 30. Rad1 {[%clk 0:00:53.2]} 30... Qc7 {[%clk
0:00:19.5]} 31. b3 {[%clk 0:00:47.9]} 31... Kh7 {[%clk 0:00:19.5]} 32. Rd5
{[%clk 0:00:47.7]} 32... Nxd5 {[%clk 0:00:19.1]} 33. cxd5 {[%clk 0:00:48.6]}
33... Qc2 {[%clk 0:00:17.6]} 34. Qxa6 {[%clk 0:00:47.3]} 34... Qd2 {[%clk
0:00:15.8]} 35. Qxc8 {[%clk 0:00:45.5]} 35... e3 {[%clk 0:00:16.2]} 36. Qc1
{[%clk 0:00:43.3]} 36... Qd4 {[%clk 0:00:11.9]} 37. Re1 {[%clk 0:00:41.7]} 37...
f4 {[%clk 0:00:11.9]} 38. gxf4 {[%clk 0:00:40.4]} 38... Qxf4+ {[%clk 0:00:12.3]}
39. Kh1 {[%clk 0:00:35.8]} 39... Be4 {[%clk 0:00:11.6]} 40. Qxe3 {[%clk
0:00:33.8]} 1-0

[Event "*** Titled Tuesday Blitz"]
[Site "Chess.com"]
[Date "2020.10.20"]
[Round "5"]
[White "KatarinaOstojic"]
[Black "romulocardoso"]
[Result "1-0"]
[WhiteElo "2336"]
[BlackElo "2095"]
[TimeControl "180+1"]
[EndTime "10:57:09 PDT"]
[Termination "KatarinaOstojic won by checkmate"]

1. d4 {[%clk 0:03:00.9]} 1... Nf6 {[%clk 0:02:59.8]} 2. Nf3 {[%clk 0:03:00.8]}
2... e6 {[%clk 0:03:00.2]} 3. c4 {[%clk 0:03:00.7]} 3... d5 {[%clk 0:03:00.2]}
4. Nc3 {[%clk 0:03:00.5]} 4... Bb4 {[%clk 0:02:59.6]} 5. cxd5 {[%clk 0:02:59.9]}
5... exd5 {[%clk 0:03:00.5]} 6. Bg5 {[%clk 0:02:59.4]} 6... O-O {[%clk
0:03:00.4]} 7. e3 {[%clk 0:02:59]} 7... b6 {[%clk 0:03:00.5]} 8. Bd3 {[%clk
0:02:58.9]} 8... Bb7 {[%clk 0:03:00.6]} 9. O-O {[%clk 0:02:58.9]} 9... h6 {[%clk
0:03:00.4]} 10. Bh4 {[%clk 0:02:57.3]} 10... Nbd7 {[%clk 0:03:00.1]} 11. Rc1
{[%clk 0:02:56]} 11... Bxc3 {[%clk 0:02:56.5]} 12. Rxc3 {[%clk 0:02:54.2]} 12...
Rc8 {[%clk 0:02:56.8]} 13. b4 {[%clk 0:02:50.6]} 13... Qe8 {[%clk 0:02:55.5]}
14. Bxf6 {[%clk 0:02:43.3]} 14... Nxf6 {[%clk 0:02:55.3]} 15. Ne5 {[%clk
0:02:43.7]} 15... Ne4 {[%clk 0:02:53.7]} 16. Bxe4 {[%clk 0:02:30.2]} 16... dxe4
{[%clk 0:02:54.6]} 17. Qg4 {[%clk 0:02:27]} 17... f5 {[%clk 0:02:44.4]} 18. Qg3
{[%clk 0:02:23.7]} 18... Qa4 {[%clk 0:02:32.3]} 19. Ng6 {[%clk 0:02:19.8]} 19...
Rf7 {[%clk 0:02:27.1]} 20. a3 {[%clk 0:02:13]} 20... a5 {[%clk 0:02:20.5]} 21.
Rb1 {[%clk 0:01:45]} 21... axb4 {[%clk 0:02:15.2]} 22. axb4 {[%clk 0:01:45.9]}
22... Qa2 {[%clk 0:02:10.7]} 23. Rbc1 {[%clk 0:01:45.4]} 23... Qa4 {[%clk
0:02:05.7]} 24. h3 {[%clk 0:01:28.3]} 24... Qxb4 {[%clk 0:02:04.4]} 25. Rxc7
{[%clk 0:01:26.3]} 25... Rcxc7 {[%clk 0:01:29.8]} 26. Rxc7 {[%clk 0:01:27.2]}
26... f4 {[%clk 0:01:29.9]} 27. Qh4 {[%clk 0:01:10.2]} 27... fxe3 {[%clk
0:00:27.4]} 28. fxe3 {[%clk 0:00:44.3]} 28... Rxc7 {[%clk 0:00:19.8]} 29. Qd8+
{[%clk 0:00:41.7]} 29... Kh7 {[%clk 0:00:19.8]} 30. Nf8+ {[%clk 0:00:40]} 30...
Kg8 {[%clk 0:00:19.6]} 31. Ne6+ {[%clk 0:00:39.8]} 31... Kf7 {[%clk 0:00:19.8]}
32. Nxc7 {[%clk 0:00:34.4]} 32... Qe1+ {[%clk 0:00:19.9]} 33. Kh2 {[%clk
0:00:34.5]} 33... Qxe3 {[%clk 0:00:20.8]} 34. Qe8+ {[%clk 0:00:30.9]} 34... Kf6
{[%clk 0:00:20]} 35. Qe6+ {[%clk 0:00:27]} 35... Kg5 {[%clk 0:00:19.3]} 36. Qe5+
{[%clk 0:00:18.1]} 36... Kh4 {[%clk 0:00:19.3]} 37. g3+ {[%clk 0:00:16.2]} 37...
Qxg3+ {[%clk 0:00:19.3]} 38. Qxg3+ {[%clk 0:00:17.1]} 38... Kh5 {[%clk
0:00:19.6]} 39. Ne6 {[%clk 0:00:16.9]} 39... e3 {[%clk 0:00:19.7]} 40. Qg4#
{[%clk 0:00:17.1]} 1-0

[Event "*** Titled Tuesday Blitz"]
[Site "Chess.com"]
[Date "2020.10.20"]
[Round "5"]
[White "Sanyura"]
[Black "DenisQ"]
[Result "0-1"]
[WhiteElo "2497"]
[BlackElo "2671"]
[TimeControl "180+1"]
[EndTime "10:57:10 PDT"]
[Termination "DenisQ won by resignation"]

1. e4 {[%clk 0:02:27.1]} 1... c6 {[%clk 0:02:57.1]} 2. Nf3 {[%clk 0:02:26.1]}
2... d5 {[%clk 0:02:58]} 3. Nc3 {[%clk 0:02:27]} 3... Bg4 {[%clk 0:02:55.6]} 4.
h3 {[%clk 0:02:26.2]} 4... Bh5 {[%clk 0:02:55.8]} 5. exd5 {[%clk 0:02:23]} 5...
cxd5 {[%clk 0:02:55.3]} 6. g4 {[%clk 0:02:23.1]} 6... Bg6 {[%clk 0:02:54.6]} 7.
Bb5+ {[%clk 0:02:23.2]} 7... Nc6 {[%clk 0:02:53.9]} 8. Ne5 {[%clk 0:02:18.5]}
8... Rc8 {[%clk 0:02:53.3]} 9. d4 {[%clk 0:02:17.1]} 9... e6 {[%clk 0:02:44.1]}
10. h4 {[%clk 0:02:11.2]} 10... f6 {[%clk 0:02:43.2]} 11. Nxg6 {[%clk
0:02:10.1]} 11... hxg6 {[%clk 0:02:44.1]} 12. Qd3 {[%clk 0:02:08.1]} 12... Kf7
{[%clk 0:02:43.8]} 13. h5 {[%clk 0:02:06.5]} 13... gxh5 {[%clk 0:02:43.3]} 14.
gxh5 {[%clk 0:02:05.2]} 14... Nge7 {[%clk 0:02:42.2]} 15. Bxc6 {[%clk
0:01:48.2]} 15... Rxc6 {[%clk 0:02:40.3]} 16. Bf4 {[%clk 0:01:46.6]} 16... Nf5
{[%clk 0:02:18.3]} 17. O-O-O {[%clk 0:01:45.1]} 17... Bb4 {[%clk 0:02:10.8]} 18.
Ne2 {[%clk 0:01:41.8]} 18... Bd6 {[%clk 0:02:08.5]} 19. Bd2 {[%clk 0:01:29]}
19... Qc7 {[%clk 0:02:00.5]} 20. Rdg1 {[%clk 0:01:24.7]} 20... b5 {[%clk
0:01:57.9]} 21. Ng3 {[%clk 0:01:19.8]} 21... Bxg3 {[%clk 0:01:34.6]} 22. fxg3
{[%clk 0:01:20.7]} 22... Rc4 {[%clk 0:01:25.5]} 23. c3 {[%clk 0:01:05.5]} 23...
Rxd4 {[%clk 0:01:21.9]} 24. Qxb5 {[%clk 0:01:03.9]} 24... Rb8 {[%clk 0:01:18.9]}
25. Qe2 {[%clk 0:00:58.2]} 25... Qc4 {[%clk 0:01:11.8]} 26. Qxc4 {[%clk
0:00:54.9]} 26... Rxc4 {[%clk 0:01:12.7]} 27. g4 {[%clk 0:00:55.2]} 27... Nd6
{[%clk 0:01:11]} 28. h6 {[%clk 0:00:52.1]} 28... g5 {[%clk 0:01:07.9]} 29. h7
{[%clk 0:00:50.7]} 29... Rh8 {[%clk 0:01:06.9]} 30. Rh6 {[%clk 0:00:38.8]} 30...
Kg7 {[%clk 0:01:03.2]} 31. Rgh1 {[%clk 0:00:30]} 31... Rxg4 {[%clk 0:01:01.9]}
32. Be3 {[%clk 0:00:28.5]} 32... a6 {[%clk 0:00:59.2]} 33. Bd4 {[%clk
0:00:28.7]} 33... Ne4 {[%clk 0:00:54.3]} 34. R6h2 {[%clk 0:00:28.7]} 34... e5
{[%clk 0:00:53.6]} 35. Be3 {[%clk 0:00:28.2]} 35... Nd6 {[%clk 0:00:49.9]} 36.
Kc2 {[%clk 0:00:28.4]} 36... Nf5 {[%clk 0:00:49.6]} 37. Bd2 {[%clk 0:00:28.5]}
37... Rh4 {[%clk 0:00:49.4]} 38. Rf2 {[%clk 0:00:26.4]} 38... Rxh1 {[%clk
0:00:48.4]} 39. Rxf5 {[%clk 0:00:27]} 39... R8xh7 {[%clk 0:00:48.6]} 40. b3
{[%clk 0:00:27.6]} 40... R7h2 {[%clk 0:00:48.5]} 41. c4 {[%clk 0:00:28.1]} 41...
dxc4 {[%clk 0:00:47.3]} 42. bxc4 {[%clk 0:00:29]} 42... Rg1 {[%clk 0:00:47]} 43.
Rf3 {[%clk 0:00:28.5]} 43... Rgg2 {[%clk 0:00:47]} 44. Rd3 {[%clk 0:00:27.4]}
44... e4 {[%clk 0:00:46.9]} 45. Rd7+ {[%clk 0:00:26.2]} 45... Kf8 {[%clk
0:00:47.1]} 46. Kc3 {[%clk 0:00:26.8]} 46... Rxd2 {[%clk 0:00:47.1]} 47. Rxd2
{[%clk 0:00:26.2]} 47... Rxd2 {[%clk 0:00:48]} 48. Kxd2 {[%clk 0:00:27.1]} 48...
Ke7 {[%clk 0:00:48.1]} 49. Ke3 {[%clk 0:00:26.7]} 49... f5 {[%clk 0:00:48.3]}
50. Kd4 {[%clk 0:00:27.2]} 50... Kd6 {[%clk 0:00:48]} 51. a3 {[%clk 0:00:23.5]}
51... g4 {[%clk 0:00:47.4]} 52. Ke3 {[%clk 0:00:21.8]} 52... Kc5 {[%clk
0:00:46.8]} 0-1